[Event "*** Titled Tuesday 3|2 Blitz"]
[Site "Chess.com"]
[Date "2015.11.03"]
[Round "8"]
[White "Aygehovit1992"]
[Black "spectralsoul"]
[Result "1/2-1/2"]
[WhiteElo "2482"]
[BlackElo "2481"]
[TimeControl "180+2"]
[EndTime "12:46:20 PST"]
[Termination "Game drawn by repetition"]

1. e4 {[%clk 0:03:01.9]} 1... d6 {[%clk 0:02:59.4]} 2. d4 {[%clk 0:03:02.3]}
2... Nf6 {[%clk 0:03:00.9]} 3. Nc3 {[%clk 0:03:04]} 3... g6 {[%clk 0:03:02.3]}
4. f4 {[%clk 0:03:04.9]} 4... Bg7 {[%clk 0:03:03.4]} 5. Nf3 {[%clk 0:03:06.3]}
5... c5 {[%clk 0:03:01.5]} 6. dxc5 {[%clk 0:03:05.8]} 6... Qa5 {[%clk
0:03:02.5]} 7. cxd6 {[%clk 0:02:52.3]} 7... Nxe4 {[%clk 0:03:01.7]} 8. Bd3
{[%clk 0:02:53.4]} 8... Nxc3 {[%clk 0:02:52.8]} 9. bxc3 {[%clk 0:02:54.4]} 9...
Qxc3+ {[%clk 0:02:50.3]} 10. Kf2 {[%clk 0:02:54.7]} 10... Qxa1 {[%clk
0:02:21.2]} 11. dxe7 {[%clk 0:02:54.9]} 11... Nc6 {[%clk 0:02:16.8]} 12. Re1
{[%clk 0:02:53.9]} 12... Be6 {[%clk 0:02:15.8]} 13. Bb5 {[%clk 0:02:33.5]} 13...
Qc3 {[%clk 0:01:56.7]} 14. Qd6 {[%clk 0:02:23.8]} 14... Bf6 {[%clk 0:01:32.3]}
15. Bd2 {[%clk 0:02:12.3]} 15... Qxc2 {[%clk 0:01:06.5]} 16. Rc1 {[%clk
0:02:11.8]} 16... Bxe7 {[%clk 0:01:07.8]} 17. Qc7 {[%clk 0:01:55.1]} 17... Qxc1
{[%clk 0:00:51.5]} 18. Bxc1 {[%clk 0:01:53.4]} 18... Bc5+ {[%clk 0:00:52.5]} 19.
Be3 {[%clk 0:01:47.2]} 19... Bxe3+ {[%clk 0:00:51.7]} 20. Kxe3 {[%clk
0:01:48.6]} 20... O-O {[%clk 0:00:53.3]} 21. Qxb7 {[%clk 0:01:47.6]} 21... Nb4
{[%clk 0:00:50.6]} 22. Nd4 {[%clk 0:01:37.4]} 22... Bd5 {[%clk 0:00:46.4]} 23.
Qc7 {[%clk 0:01:35]} 23... Bxa2 {[%clk 0:00:29.8]} 24. Kf2 {[%clk 0:01:29.7]}
24... a5 {[%clk 0:00:30.5]} 25. f5 {[%clk 0:01:30.7]} 25... Nd5 {[%clk
0:00:31.9]} 26. Qe5 {[%clk 0:01:28.7]} 26... a4 {[%clk 0:00:20.8]} 27. Bc6
{[%clk 0:01:28.5]} 27... Ra5 {[%clk 0:00:19]} 28. f6 {[%clk 0:01:24.4]} 28... a3
{[%clk 0:00:18.5]} 29. Qg5 {[%clk 0:01:19.4]} 29... h6 {[%clk 0:00:13]} 30. Qd2
{[%clk 0:01:19.2]} 30... Nxf6 {[%clk 0:00:10.8]} 31. Qxa2 {[%clk 0:01:18.6]}
31... Rd8 {[%clk 0:00:10.7]} 32. Nf3 {[%clk 0:01:16.6]} 32... Rd6 {[%clk
0:00:10.7]} 33. Bb5 {[%clk 0:00:53.8]} 33... Rb6 {[%clk 0:00:10.2]} 34. Nd4
{[%clk 0:00:51.8]} 34... Kg7 {[%clk 0:00:09.5]} 35. Kf3 {[%clk 0:00:48.2]} 35...
Rbxb5 {[%clk 0:00:10.3]} 36. Nxb5 {[%clk 0:00:49.4]} 36... Rxb5 {[%clk
0:00:12.2]} 37. Qxa3 {[%clk 0:00:51.1]} 37... Rf5+ {[%clk 0:00:14.1]} 38. Ke2
{[%clk 0:00:50.9]} 38... h5 {[%clk 0:00:15.4]} 39. Qc3 {[%clk 0:00:50.6]} 39...
Kg8 {[%clk 0:00:16.7]} 40. Qd4 {[%clk 0:00:51.1]} 40... Kh7 {[%clk 0:00:16.5]}
41. h3 {[%clk 0:00:51.1]} 41... Kg7 {[%clk 0:00:15.3]} 42. g4 {[%clk 0:00:50.5]}
42... hxg4 {[%clk 0:00:17.2]} 43. hxg4 {[%clk 0:00:51.8]} 43... Rd5 {[%clk
0:00:19.1]} 44. Qf4 {[%clk 0:00:46.8]} 44... g5 {[%clk 0:00:20.4]} 45. Qc4
{[%clk 0:00:45.2]} 45... Re5+ {[%clk 0:00:20.8]} 46. Kf3 {[%clk 0:00:42.6]}
46... Re4 {[%clk 0:00:22.2]} 47. Qxe4 {[%clk 0:00:31.1]} 47... Nxe4 {[%clk
0:00:23.4]} 48. Kxe4 {[%clk 0:00:32.7]} 48... Kf6 {[%clk 0:00:22.6]} 49. Kd5
{[%clk 0:00:33.6]} 49... Kg7 {[%clk 0:00:19.7]} 50. Ke4 {[%clk 0:00:31.2]} 50...
Kf6 {[%clk 0:00:10.9]} 51. Kd5 {[%clk 0:00:32.1]} 51... Kg7 {[%clk 0:00:08.3]}
52. Ke4 {[%clk 0:00:31.8]} 52... Kg6 {[%clk 0:00:07.7]} 53. Ke5 {[%clk
0:00:32.6]} 53... Kg7 {[%clk 0:00:08.5]} 54. Ke4 {[%clk 0:00:30.5]} 54... f6
{[%clk 0:00:08.5]} 55. Kd5 {[%clk 0:00:30.6]} 55... Kf8 {[%clk 0:00:08.9]} 56.
Ke6 {[%clk 0:00:30.1]} 56... Kg7 {[%clk 0:00:10.6]} 57. Ke7 {[%clk 0:00:31.1]}
57... Kg6 {[%clk 0:00:11.5]} 58. Ke6 {[%clk 0:00:32.6]} 58... Kg7 {[%clk
0:00:12.9]} 59. Ke7 {[%clk 0:00:34.1]} 59... Kg6 {[%clk 0:00:13.1]} 60. Ke6
{[%clk 0:00:35.5]} 60... Kg7 {[%clk 0:00:13.1]} 61. Ke7 {[%clk 0:00:36.9]} 61...
Kg6 {[%clk 0:00:09.9]} 62. Ke6 {[%clk 0:00:38.2]} 62... Kg7 {[%clk 0:00:11.4]}
63. Ke7 {[%clk 0:00:39.4]} 63... Kg6 {[%clk 0:00:13.3]} 64. Ke6 {[%clk
0:00:40.7]} 64... Kg7 {[%clk 0:00:15.2]} 1/2-1/2

[Event "*** Titled Tuesday 3|2 Blitz"]
[Site "Chess.com"]
[Date "2015.11.03"]
[Round "8"]
[White "Canonkasparov"]
[Black "E-Shaposhnikov"]
[Result "1/2-1/2"]
[WhiteElo "2383"]
[BlackElo "2532"]
[TimeControl "180+2"]
[EndTime "12:49:09 PST"]
[Termination "Game drawn by repetition"]

1. d4 {[%clk 0:03:01.9]} 1... Nf6 {[%clk 0:03:00.6]} 2. Nf3 {[%clk 0:03:03.1]}
2... e6 {[%clk 0:03:01.8]} 3. Bf4 {[%clk 0:03:03.4]} 3... c5 {[%clk 0:03:02]} 4.
e3 {[%clk 0:03:03.6]} 4... b6 {[%clk 0:03:02.3]} 5. Nbd2 {[%clk 0:03:03.3]} 5...
Bb7 {[%clk 0:03:03.5]} 6. Nc4 {[%clk 0:03:02.1]} 6... Ne4 {[%clk 0:02:54.8]} 7.
Bd3 {[%clk 0:02:51.7]} 7... cxd4 {[%clk 0:02:18.8]} 8. exd4 {[%clk 0:02:40.4]}
8... d5 {[%clk 0:02:08]} 9. Nce5 {[%clk 0:02:21.3]} 9... Nd6 {[%clk 0:01:37.8]}
10. c3 {[%clk 0:02:11.5]} 10... Be7 {[%clk 0:01:21.4]} 11. Qa4+ {[%clk
0:02:06.7]} 11... Nd7 {[%clk 0:01:02.6]} 12. O-O {[%clk 0:01:45.5]} 12... a6
{[%clk 0:00:59.5]} 13. Nxd7 {[%clk 0:01:33.9]} 13... Qxd7 {[%clk 0:00:42.4]} 14.
Qc2 {[%clk 0:01:32.1]} 14... h6 {[%clk 0:00:29.6]} 15. a4 {[%clk 0:01:31.5]}
15... O-O {[%clk 0:00:29.5]} 16. Ne5 {[%clk 0:01:31.3]} 16... Qd8 {[%clk
0:00:22.5]} 17. Rfe1 {[%clk 0:01:22.2]} 17... Rc8 {[%clk 0:00:17.7]} 18. Qe2
{[%clk 0:01:21.8]} 18... Bg5 {[%clk 0:00:16.8]} 19. Bxg5 {[%clk 0:01:20.5]}
19... Qxg5 {[%clk 0:00:17.2]} 20. Nd7 {[%clk 0:01:18]} 20... Rfd8 {[%clk
0:00:16.2]} 21. Nxb6 {[%clk 0:01:18.1]} 21... Rc6 {[%clk 0:00:16]} 22. a5 {[%clk
0:01:18.4]} 22... Nc4 {[%clk 0:00:17.1]} 23. Nxc4 {[%clk 0:01:14.9]} 23... dxc4
{[%clk 0:00:18.1]} 24. Be4 {[%clk 0:01:15.5]} 24... Rc7 {[%clk 0:00:18.1]} 25.
Bxb7 {[%clk 0:01:08.9]} 25... Rxb7 {[%clk 0:00:20]} 26. Qxc4 {[%clk 0:01:06.7]}
26... Rxb2 {[%clk 0:00:19.1]} 27. Qxa6 {[%clk 0:01:06.8]} 27... Qd2 {[%clk
0:00:19]} 28. Rf1 {[%clk 0:01:00.4]} 28... Qxc3 {[%clk 0:00:20.1]} 29. Qa7
{[%clk 0:00:50.8]} 29... Qxd4 {[%clk 0:00:10.1]} 30. Qxd4 {[%clk 0:00:43.2]}
30... Rxd4 {[%clk 0:00:12]} 31. a6 {[%clk 0:00:43.5]} 31... Rd8 {[%clk
0:00:13.7]} 32. a7 {[%clk 0:00:40.7]} 32... Ra8 {[%clk 0:00:14.6]} 33. Ra3
{[%clk 0:00:40.7]} 33... Rb7 {[%clk 0:00:14.7]} 34. Rfa1 {[%clk 0:00:40.9]}
34... Kf8 {[%clk 0:00:16.4]} 35. g3 {[%clk 0:00:38.8]} 35... Ke7 {[%clk
0:00:17.7]} 36. Ra6 {[%clk 0:00:38.5]} 36... Kd7 {[%clk 0:00:18.2]} 37. h4
{[%clk 0:00:35.7]} 37... Kc7 {[%clk 0:00:19]} 38. Rc1+ {[%clk 0:00:33.5]} 38...
Kd7 {[%clk 0:00:19.5]} 39. Rd1+ {[%clk 0:00:32.6]} 39... Kc7 {[%clk 0:00:19.8]}
40. Rda1 {[%clk 0:00:33.1]} 40... Rb6 {[%clk 0:00:20.8]} 41. R6a2 {[%clk
0:00:31]} 41... Kb7 {[%clk 0:00:20.5]} 42. Kg2 {[%clk 0:00:31.4]} 42... h5
{[%clk 0:00:21.8]} 43. Ra3 {[%clk 0:00:31]} 43... Rb5 {[%clk 0:00:21.9]} 44.
R1a2 {[%clk 0:00:30.9]} 44... Kb6 {[%clk 0:00:21.7]} 45. Kf3 {[%clk 0:00:30.8]}
45... Rb4 {[%clk 0:00:22.7]} 46. Ra5 {[%clk 0:00:29.8]} 46... g6 {[%clk
0:00:21.2]} 47. R2a3 {[%clk 0:00:30.3]} 47... Kb7 {[%clk 0:00:21.4]} 48. Ra6
{[%clk 0:00:30.7]} 48... Rc4 {[%clk 0:00:19.4]} 49. R6a5 {[%clk 0:00:28.9]}
49... Rb4 {[%clk 0:00:20]} 50. Ra1 {[%clk 0:00:28.8]} 50... Kb6 {[%clk
0:00:20.7]} 51. R5a2 {[%clk 0:00:29.3]} 51... Kb7 {[%clk 0:00:21]} 52. Rd2
{[%clk 0:00:28.2]} 52... Rc4 {[%clk 0:00:19.8]} 53. Rd7+ {[%clk 0:00:27.1]}
53... Rc7 {[%clk 0:00:20.8]} 54. Rd2 {[%clk 0:00:16.8]} 54... Rxa7 {[%clk
0:00:19.6]} 55. Rb2+ {[%clk 0:00:17.3]} 55... Ka8 {[%clk 0:00:20]} 56. Rd1
{[%clk 0:00:17.4]} 56... Rd7 {[%clk 0:00:19.7]} 57. Rdb1 {[%clk 0:00:18.1]}
57... Ra4 {[%clk 0:00:16.6]} 58. Rb8+ {[%clk 0:00:18.5]} 58... Ka7 {[%clk
0:00:17.8]} 59. R1b3 {[%clk 0:00:19.6]} 59... Ra5 {[%clk 0:00:18.2]} 60. Kg2
{[%clk 0:00:18.7]} 60... Ra4 {[%clk 0:00:19.4]} 61. R8b5 {[%clk 0:00:19.1]}
61... Ra6 {[%clk 0:00:19.8]} 62. Rb2 {[%clk 0:00:19.7]} 62... Ra4 {[%clk
0:00:20.5]} 63. R5b3 {[%clk 0:00:20.3]} 63... Ka6 {[%clk 0:00:20.8]} 64. Rb8
{[%clk 0:00:20.9]} 64... Ka7 {[%clk 0:00:22]} 65. R8b5 {[%clk 0:00:21.8]} 65...
Ra3 {[%clk 0:00:22.1]} 66. R5b4 {[%clk 0:00:22.4]} 66... Ra5 {[%clk 0:00:22.9]}
67. Rb8 {[%clk 0:00:22.8]} 67... Rc7 {[%clk 0:00:23.5]} 68. R8b4 {[%clk
0:00:23]} 68... Ra3 {[%clk 0:00:21.9]} 69. Rb5 {[%clk 0:00:23.7]} 69... Ra1
{[%clk 0:00:21.9]} 70. Rb8 {[%clk 0:00:24.3]} 70... Ra6 {[%clk 0:00:22.1]} 71.
R8b3 {[%clk 0:00:25]} 71... Rac6 {[%clk 0:00:22.1]} 72. Ra3+ {[%clk 0:00:25.1]}
72... Ra6 {[%clk 0:00:23.1]} 73. Rab3 {[%clk 0:00:26.5]} 73... Rd7 {[%clk
0:00:24]} 74. Rb8 {[%clk 0:00:26.7]} 74... e5 {[%clk 0:00:23.8]} 75. R8b4 {[%clk
0:00:26.9]} 75... Re7 {[%clk 0:00:24.9]} 76. Kf3 {[%clk 0:00:27]} 76... f5
{[%clk 0:00:22.1]} 77. Kg2 {[%clk 0:00:27]} 77... e4 {[%clk 0:00:22.2]} 78. Rb8
{[%clk 0:00:27.7]} 78... Ra5 {[%clk 0:00:21]} 79. R8b3 {[%clk 0:00:28.3]} 79...
Ra4 {[%clk 0:00:22]} 80. Rb6 {[%clk 0:00:27.7]} 80... Ra6 {[%clk 0:00:23]} 81.
Rb8 {[%clk 0:00:28.1]} 81... Rae6 {[%clk 0:00:21.6]} 82. R8b3 {[%clk 0:00:27.7]}
82... Ra6 {[%clk 0:00:21.1]} 83. Rb8 {[%clk 0:00:28.1]} 83... Ra4 {[%clk
0:00:20.2]} 84. R8b3 {[%clk 0:00:28.2]} 84... Re6 {[%clk 0:00:20.5]} 85. Rb7+
{[%clk 0:00:28]} 85... Ka6 {[%clk 0:00:21.5]} 86. Rb8 {[%clk 0:00:29]} 86... Ka7
{[%clk 0:00:22.5]} 87. R2b7+ {[%clk 0:00:29.4]} 87... Ka6 {[%clk 0:00:23.7]} 88.
Rb3 {[%clk 0:00:30]} 88... Ka7 {[%clk 0:00:22]} 89. R8b7+ {[%clk 0:00:29.6]}
89... Ka6 {[%clk 0:00:22.3]} 90. Rb8 {[%clk 0:00:29.6]} 90... Ka7 {[%clk
0:00:22.1]} 91. R3b7+ {[%clk 0:00:29.5]} 91... Ka6 {[%clk 0:00:23]} 92. Rb2
{[%clk 0:00:28.4]} 92... Ka7 {[%clk 0:00:23.3]} 93. R8b7+ {[%clk 0:00:28.8]}
93... Ka8 {[%clk 0:00:23.3]} 94. Rb8+ {[%clk 0:00:28.7]} 94... Ka7 {[%clk
0:00:24.2]} 95. R8b7+ {[%clk 0:00:28.4]} 95... Ka6 {[%clk 0:00:24.9]} 96. Rb8
{[%clk 0:00:26.4]} 96... Ka7 {[%clk 0:00:25.7]} 97. R8b7+ {[%clk 0:00:26.9]}
97... Ka8 {[%clk 0:00:21.1]} 98. Rb8+ {[%clk 0:00:27.5]} 98... Ka7 {[%clk
0:00:22.2]} 1/2-1/2

[Event "*** Titled Tuesday 3|2 Blitz"]
[Site "Chess.com"]
[Date "2015.11.03"]
[Round "9"]
[White "Canonkasparov"]
[Black "AndroQueen"]
[Result "0-1"]
[WhiteElo "2372"]
[BlackElo "2265"]
[TimeControl "180+2"]
[EndTime "12:55:07 PST"]
[Termination "AndroQueen won by checkmate"]

1. d4 {[%clk 0:02:42.3]} 1... Nf6 {[%clk 0:03:00.4]} 2. Nf3 {[%clk 0:02:43.2]}
2... g6 {[%clk 0:03:01.1]} 3. Bg5 {[%clk 0:02:42.9]} 3... Bg7 {[%clk 0:03:02.4]}
4. Nbd2 {[%clk 0:02:43.8]} 4... O-O {[%clk 0:03:02.5]} 5. c3 {[%clk 0:02:43.2]}
5... d6 {[%clk 0:03:01.8]} 6. e3 {[%clk 0:02:41.9]} 6... Nbd7 {[%clk 0:02:59.2]}
7. a4 {[%clk 0:02:42.1]} 7... a5 {[%clk 0:02:57.3]} 8. Bc4 {[%clk 0:02:42.4]}
8... b6 {[%clk 0:02:55.2]} 9. O-O {[%clk 0:02:41.1]} 9... Bb7 {[%clk 0:02:56.6]}
10. Qe2 {[%clk 0:02:38.5]} 10... e6 {[%clk 0:02:49.5]} 11. Bb5 {[%clk
0:02:36.5]} 11... h6 {[%clk 0:02:43.9]} 12. Bh4 {[%clk 0:02:34.6]} 12... g5
{[%clk 0:02:41.1]} 13. Bg3 {[%clk 0:02:33.4]} 13... Nh5 {[%clk 0:02:36.6]} 14.
e4 {[%clk 0:02:28.1]} 14... Nxg3 {[%clk 0:02:36.4]} 15. hxg3 {[%clk 0:02:28.1]}
15... Qe7 {[%clk 0:02:34]} 16. Rfe1 {[%clk 0:02:27.5]} 16... Rad8 {[%clk
0:02:06.4]} 17. Ba6 {[%clk 0:02:19]} 17... Ba8 {[%clk 0:02:07.3]} 18. Nc4 {[%clk
0:02:16.7]} 18... Nb8 {[%clk 0:01:57.9]} 19. Na3 {[%clk 0:02:16.1]} 19... Nxa6
{[%clk 0:01:57.7]} 20. Qxa6 {[%clk 0:02:15.7]} 20... Qd7 {[%clk 0:01:50.6]} 21.
b3 {[%clk 0:02:05.9]} 21... f5 {[%clk 0:01:43.6]} 22. exf5 {[%clk 0:01:46.3]}
22... Rxf5 {[%clk 0:01:38.2]} 23. Nd2 {[%clk 0:01:40.2]} 23... Rdf8 {[%clk
0:01:35.8]} 24. Rf1 {[%clk 0:01:30.4]} 24... Qc6 {[%clk 0:01:33.9]} 25. f3
{[%clk 0:01:18.8]} 25... Qxc3 {[%clk 0:01:34.4]} 26. Ndc4 {[%clk 0:01:12]} 26...
Qxd4+ {[%clk 0:01:25.2]} 27. Kh2 {[%clk 0:01:09.8]} 27... g4 {[%clk 0:01:26.5]}
28. f4 {[%clk 0:01:04.4]} 28... Rh5# {[%clk 0:01:26.5]} 0-1

[Event "*** Titled Tuesday 3|2 Blitz"]
[Site "Chess.com"]
[Date "2015.11.03"]
[Round "9"]
[White "jcgs1030"]
[Black "Nutflush"]
[Result "0-1"]
[WhiteElo "1947"]
[BlackElo "1897"]
[TimeControl "180+2"]
[EndTime "12:55:55 PST"]
[Termination "Nutflush won by resignation"]

1. e4 {[%clk 0:03:01.9]} 1... c5 {[%clk 0:02:59.3]} 2. Nf3 {[%clk 0:03:01.7]}
2... Nc6 {[%clk 0:03:00.6]} 3. d4 {[%clk 0:03:03]} 3... cxd4 {[%clk 0:03:02.5]}
4. Nxd4 {[%clk 0:03:04.5]} 4... Nf6 {[%clk 0:03:03.9]} 5. Nc3 {[%clk 0:03:06]}
5... e5 {[%clk 0:03:03.4]} 6. Ndb5 {[%clk 0:03:07.2]} 6... d6 {[%clk 0:03:04.2]}
7. Bg5 {[%clk 0:03:07.8]} 7... a6 {[%clk 0:03:05.4]} 8. Na3 {[%clk 0:03:09]}
8... b5 {[%clk 0:03:06.8]} 9. Nd5 {[%clk 0:03:10.1]} 9... Be7 {[%clk 0:03:06.9]}
10. Bxf6 {[%clk 0:03:11.2]} 10... Bxf6 {[%clk 0:03:08]} 11. c4 {[%clk
0:03:12.8]} 11... Ne7 {[%clk 0:03:07]} 12. cxb5 {[%clk 0:03:00.9]} 12... O-O
{[%clk 0:03:06.1]} 13. Nxf6+ {[%clk 0:03:00.8]} 13... gxf6 {[%clk 0:03:06.4]}
14. bxa6 {[%clk 0:02:56.7]} 14... Bxa6 {[%clk 0:03:06.9]} 15. Bxa6 {[%clk
0:02:57.6]} 15... Qa5+ {[%clk 0:03:08.2]} 16. Qd2 {[%clk 0:02:57.5]} 16... Qxa6
{[%clk 0:03:10.1]} 17. Rd1 {[%clk 0:02:52.9]} 17... Rad8 {[%clk 0:03:01.2]} 18.
Qd3 {[%clk 0:02:51.2]} 18... Qa5+ {[%clk 0:02:59.4]} 19. Rd2 {[%clk 0:02:52.6]}
19... d5 {[%clk 0:03:00.2]} 20. exd5 {[%clk 0:02:50.2]} 20... Rxd5 {[%clk
0:02:59.6]} 21. Qc3 {[%clk 0:02:51.4]} 21... Qa6 {[%clk 0:02:56.2]} 22. Rxd5
{[%clk 0:02:43.1]} 22... Nxd5 {[%clk 0:02:55.8]} 23. Qc4 {[%clk 0:02:44.5]}
23... Qa5+ {[%clk 0:02:46.6]} 24. Ke2 {[%clk 0:02:45.2]} 24... Nf4+ {[%clk
0:02:44.4]} 25. Kf3 {[%clk 0:02:45.4]} 25... Rd8 {[%clk 0:02:37.6]} 26. Nc2
{[%clk 0:02:37.6]} 26... f5 {[%clk 0:02:10.6]} 27. Re1 {[%clk 0:01:17.9]} 27...
Qa8+ {[%clk 0:02:05.8]} 28. Ke3 {[%clk 0:01:08.1]} 28... Nxg2+ {[%clk
0:02:01.3]} 29. Ke2 {[%clk 0:01:08.8]} 29... Nxe1 {[%clk 0:01:52.4]} 30. Nxe1
{[%clk 0:01:06.7]} 30... Qa5 {[%clk 0:01:32.2]} 31. b4 {[%clk 0:00:58.5]} 31...
Qa3 {[%clk 0:01:28.3]} 32. Nd3 {[%clk 0:00:53.2]} 32... e4 {[%clk 0:01:28.8]}
33. Ne5 {[%clk 0:00:53.6]} 33... Qb2+ {[%clk 0:01:29.3]} 0-1

[Event "*** Titled Tuesday 3|2 Blitz"]
[Site "Chess.com"]
[Date "2015.11.03"]
[Round "9"]
[White "Badouuu"]
[Black "xdb"]
[Result "0-1"]
[WhiteElo "1935"]
[BlackElo "2095"]
[TimeControl "180+2"]
[EndTime "12:55:58 PST"]
[Termination "xdb won by resignation"]

1. e4 {[%clk 0:02:58.6]} 1... c5 {[%clk 0:02:58.9]} 2. Nf3 {[%clk 0:02:59.3]}
2... e6 {[%clk 0:03:00.8]} 3. d4 {[%clk 0:02:59.8]} 3... cxd4 {[%clk 0:03:02.7]}
4. Nxd4 {[%clk 0:03:01.5]} 4... a6 {[%clk 0:03:03.9]} 5. Bd3 {[%clk 0:03:01.4]}
5... Bc5 {[%clk 0:03:04.4]} 6. Nb3 {[%clk 0:03:02.2]} 6... Be7 {[%clk
0:03:05.5]} 7. O-O {[%clk 0:03:03.4]} 7... d6 {[%clk 0:03:05.7]} 8. f4 {[%clk
0:03:00.7]} 8... Nd7 {[%clk 0:02:58.9]} 9. Nc3 {[%clk 0:02:56.6]} 9... Ngf6
{[%clk 0:02:59.2]} 10. Qe1 {[%clk 0:02:53.7]} 10... Qc7 {[%clk 0:02:54.9]} 11.
Kh1 {[%clk 0:02:51.3]} 11... b5 {[%clk 0:02:53.2]} 12. a3 {[%clk 0:02:49.8]}
12... Bb7 {[%clk 0:02:53.1]} 13. Be3 {[%clk 0:02:49.7]} 13... O-O {[%clk
0:02:50.9]} 14. Rd1 {[%clk 0:02:49.8]} 14... Rac8 {[%clk 0:02:29.8]} 15. h3
{[%clk 0:02:31.3]} 15... Qb8 {[%clk 0:02:28.7]} 16. Kh2 {[%clk 0:02:31.5]} 16...
Qa8 {[%clk 0:02:08.6]} 17. Bg1 {[%clk 0:02:27.3]} 17... Rxc3 {[%clk 0:01:58.9]}
18. bxc3 {[%clk 0:02:27.7]} 18... Nxe4 {[%clk 0:01:57.7]} 19. Nd2 {[%clk
0:02:18.2]} 19... Nxc3 {[%clk 0:01:54.4]} 20. Rc1 {[%clk 0:02:18.3]} 20... Bxg2
{[%clk 0:01:52.7]} 21. Rf2 {[%clk 0:02:18.2]} 21... Bh4 {[%clk 0:01:50.7]} 22.
Nb3 {[%clk 0:02:14.4]} 22... Rc8 {[%clk 0:01:39.5]} 23. Rxg2 {[%clk 0:01:48.3]}
23... Bxe1 {[%clk 0:01:33.8]} 24. Rxe1 {[%clk 0:01:50.2]} 24... Nd5 {[%clk
0:01:26.9]} 25. Bd4 {[%clk 0:01:47.5]} 25... N7f6 {[%clk 0:01:15.2]} 26. Be4
{[%clk 0:01:42.7]} 26... Nxe4 {[%clk 0:01:02.6]} 27. Rxg7+ {[%clk 0:01:42.1]}
27... Kf8 {[%clk 0:01:03.1]} 28. Rxe4 {[%clk 0:01:41.5]} 28... Rxc2+ {[%clk
0:01:00.2]} 29. Kg3 {[%clk 0:01:35.8]} 29... Nf6 {[%clk 0:00:58.5]} 30. Rxe6
{[%clk 0:01:15.5]} 30... fxe6 {[%clk 0:00:47.5]} 31. Bxf6 {[%clk 0:01:16.2]}
31... Rg2+ {[%clk 0:00:45.3]} 32. Kh4 {[%clk 0:01:16.5]} 0-1

[Event "*** Titled Tuesday 3|2 Blitz"]
[Site "Chess.com"]
[Date "2015.11.03"]
[Round "9"]
[White "pKiLz5Rn9b"]
[Black "darsen_sanzhaev"]
[Result "1-0"]
[WhiteElo "2453"]
[BlackElo "2270"]
[TimeControl "180+2"]
[EndTime "12:56:06 PST"]
[Termination "pKiLz5Rn9b won by resignation"]

1. e4 {[%clk 0:03:01.9]} 1... c5 {[%clk 0:03:00.8]} 2. c3 {[%clk 0:03:02.9]}
2... d5 {[%clk 0:03:00.3]} 3. exd5 {[%clk 0:03:04]} 3... Qxd5 {[%clk 0:03:02.2]}
4. d4 {[%clk 0:03:05.5]} 4... Nc6 {[%clk 0:03:03.9]} 5. Nf3 {[%clk 0:03:06.4]}
5... Bf5 {[%clk 0:03:05.6]} 6. Be3 {[%clk 0:03:06.8]} 6... Nf6 {[%clk
0:03:04.7]} 7. Na3 {[%clk 0:03:06.1]} 7... cxd4 {[%clk 0:02:58.2]} 8. Nxd4
{[%clk 0:02:59.7]} 8... Nxd4 {[%clk 0:02:38.9]} 9. Bxd4 {[%clk 0:02:59.7]} 9...
e5 {[%clk 0:02:02.9]} 10. Nb5 {[%clk 0:02:27.9]} 10... Rc8 {[%clk 0:01:02.4]}
11. Bxa7 {[%clk 0:02:16.1]} 11... Qe4+ {[%clk 0:00:56]} 12. Be2 {[%clk
0:02:11.1]} 12... Be7 {[%clk 0:00:17.5]} 13. O-O {[%clk 0:02:07.1]} 13... O-O
{[%clk 0:00:18.7]} 14. Bf3 {[%clk 0:02:08.6]} 14... Qc4 {[%clk 0:00:17.4]} 15.
Nd6 {[%clk 0:02:06.2]} 15... Bxd6 {[%clk 0:00:17.9]} 16. Qxd6 {[%clk 0:02:08.1]}
16... Qb5 {[%clk 0:00:11]} 17. Qb6 {[%clk 0:02:05.9]} 17... Qxb6 {[%clk
0:00:09.2]} 18. Bxb6 {[%clk 0:02:07.8]} 18... Nd7 {[%clk 0:00:04.9]} 19. Be3
{[%clk 0:02:08.4]} 19... b6 {[%clk 0:00:03]} 20. Rfd1 {[%clk 0:02:07.1]} 20...
Rfd8 {[%clk 0:00:03.7]} 21. Bb7 {[%clk 0:02:06.9]} 21... Rb8 {[%clk 0:00:04]}
22. Bc6 {[%clk 0:02:07.9]} 22... Nc5 {[%clk 0:00:04.6]} 23. Rxd8+ {[%clk
0:02:07.6]} 23... Rxd8 {[%clk 0:00:05.5]} 24. Bxc5 {[%clk 0:02:09]} 24... bxc5
{[%clk 0:00:06.7]} 25. a4 {[%clk 0:02:10.6]} 25... Rd6 {[%clk 0:00:04]} 26. Bf3
{[%clk 0:02:05.2]} 26... Bd3 {[%clk 0:00:02.7]} 27. Rd1 {[%clk 0:02:01.4]} 27...
c4 {[%clk 0:00:02.7]} 28. a5 {[%clk 0:01:56.1]} 28... f5 {[%clk 0:00:04]} 29.
Bb7 {[%clk 0:01:55.7]} 29... Rd7 {[%clk 0:00:03.9]} 30. a6 {[%clk 0:01:56.7]}
30... e4 {[%clk 0:00:04.6]} 31. a7 {[%clk 0:01:57.3]} 31... Rd8 {[%clk
0:00:06.2]} 32. a8=Q {[%clk 0:01:55.7]} 1-0

[Event "*** Titled Tuesday 3|2 Blitz"]
[Site "Chess.com"]
[Date "2015.11.03"]
[Round "9"]
[White "Zkid"]
[Black "ChadaevNikolay"]
[Result "0-1"]
[WhiteElo "2537"]
[BlackElo "2584"]
[TimeControl "180+2"]
[EndTime "12:56:14 PST"]
[Termination "ChadaevNikolay won by resignation"]

1. e4 {[%clk 0:03:01.9]} 1... c5 {[%clk 0:02:55.1]} 2. Nf3 {[%clk 0:03:01.8]}
2... g6 {[%clk 0:02:55]} 3. d4 {[%clk 0:03:01.2]} 3... cxd4 {[%clk 0:02:52.9]}
4. Nxd4 {[%clk 0:03:02.2]} 4... Bg7 {[%clk 0:02:53.5]} 5. Nc3 {[%clk 0:03:03.3]}
5... Nc6 {[%clk 0:02:54.4]} 6. Be3 {[%clk 0:03:03.7]} 6... Nf6 {[%clk 0:02:56]}
7. Bc4 {[%clk 0:03:03.6]} 7... O-O {[%clk 0:02:56.5]} 8. Bb3 {[%clk 0:03:04.7]}
8... d6 {[%clk 0:02:56.5]} 9. f3 {[%clk 0:02:59.4]} 9... Bd7 {[%clk 0:02:57.9]}
10. Qd2 {[%clk 0:02:59]} 10... Nxd4 {[%clk 0:02:59]} 11. Bxd4 {[%clk 0:02:59.7]}
11... b5 {[%clk 0:03:00.9]} 12. e5 {[%clk 0:02:36.8]} 12... dxe5 {[%clk
0:02:56.1]} 13. Bxe5 {[%clk 0:02:37.8]} 13... Bc6 {[%clk 0:02:46.1]} 14. Rd1
{[%clk 0:02:28]} 14... a5 {[%clk 0:02:41.7]} 15. Qxd8 {[%clk 0:02:25.6]} 15...
Rfxd8 {[%clk 0:02:41]} 16. a3 {[%clk 0:02:23]} 16... Rxd1+ {[%clk 0:02:15.2]}
17. Kxd1 {[%clk 0:02:08.7]} 17... e6 {[%clk 0:02:03.8]} 18. Kc1 {[%clk
0:02:03.5]} 18... Nd7 {[%clk 0:02:02.5]} 19. Bxg7 {[%clk 0:02:03.1]} 19... Kxg7
{[%clk 0:02:04.4]} 20. Rd1 {[%clk 0:02:03.3]} 20... Nc5 {[%clk 0:02:05.2]} 21.
Ba2 {[%clk 0:01:57.2]} 21... Kf6 {[%clk 0:01:56.8]} 22. b4 {[%clk 0:01:46.5]}
22... axb4 {[%clk 0:01:53.8]} 23. axb4 {[%clk 0:01:47.1]} 23... Na6 {[%clk
0:01:46.3]} 24. Rd4 {[%clk 0:01:45.9]} 24... Ke7 {[%clk 0:01:40.8]} 25. Ne2
{[%clk 0:01:37.8]} 25... Nxb4 {[%clk 0:01:10.8]} 26. Bxe6 {[%clk 0:00:45.2]}
26... Nxc2 {[%clk 0:01:10.7]} 27. Kxc2 {[%clk 0:00:45.9]} 27... Kxe6 {[%clk
0:01:11.3]} 28. Kb2 {[%clk 0:00:45.5]} 28... Bd5 {[%clk 0:01:06.2]} 29. Rb4
{[%clk 0:00:40]} 29... Ra2+ {[%clk 0:01:03.3]} 30. Kc3 {[%clk 0:00:40.2]} 30...
Rxe2 {[%clk 0:01:03.3]} 0-1